bitfinex/quotes_ETHUSD_20250629
["timestamp","ask_amount","ask_price","bid_price","bid_amount"]
[1751204993646,10.0,2448.7,2448.6,4.08496634]
[1751204994261,10.754,2449.1,2448.8,4.08354943]
[1751204994467,10.754,2449.1,2448.7,4.86151745]
[1751204994468,0.754,2449.1,2448.7,4.86151745]
[1751204995874,0.754,2449.1,2448.8,4.0835011]
[1751204996071,0.754,2449.1,2448.8,0.204]
[1751204996072,0.55,2449.1,2448.8,0.204]
[1751204996234,10.0,2449.2,2448.8,4.28746625]
[1751204996434,10.0,2449.2,2448.8,0.204]
[1751204996773,14.08304656,2449.2,2448.8,0.204]
[1751204997163,10.0,2449.2,2448.8,4.28761605]
[1751204997371,23.40252103,2449.2,2448.8,0.204]
[1751204998159,4.08313673,2449.1,2448.8,0.204]
[1751205001775,23.4024897,2449.2,2448.8,0.204]
[1751205002157,4.08314351,2449.1,2448.8,0.204]
[1751205003278,4.08314351,2449.1,2448.6,4.08487935]
[1751205003279,0.55,2448.8,2448.6,0.001]
[1751205003486,0.55,2448.8,2448.6,4.08494064]
[1751205004582,10.204,2449.4,2449.0,4.91272675]
[1751205004770,10.204,2449.4,2449.0,5.11672675]
[1751205005280,14.2866334,2449.4,2449.0,5.11672675]
[1751205005671,14.2866334,2449.4,2449.0,1.0335]
[1751205005880,14.2866334,2449.4,2449.0,5.11679916]
[1751205006073,0.204,2449.4,2449.0,1.95353824]
[1751205006280,0.204,2449.7,2449.4,0.8295]
[1751205006793,10.204,2449.7,2449.4,0.8295]
[1751205007380,10.204,2449.7,2449.4,4.91211648]
[1751205007381,0.204,2449.7,2449.4,4.91211648]
[1751205007585,0.002,2449.9,2449.6,1.0335]
[1751205008001,4.08380171,2449.9,2449.6,1.0335]
[1751205008495,0.552,2449.9,2449.6,1.0335]
[1751205009497,4.6338978,2449.9,2449.6,1.0335]
[1751205010396,0.552,2449.9,2449.6,1.0335]
[1751205010597,2.96791534,2449.9,2449.6,1.0335]
[1751205010798,2.96791534,2449.9,2449.6,0.204]
[1751205010799,4.08197358,2449.8,2449.6,0.204]
[1751205010959,10.55,2449.7,2449.6,0.204]
[1751205011164,4.08242499,2449.6,2449.3,0.204]
[1751205011470,13.40191057,2449.5,2449.3,0.204]
[1751205012498,4.63265336,2449.4,2449.1,0.204]
[1751205013523,13.40227176,2449.3,2449.1,0.204]
[1751205013792,13.40227176,2449.3,2448.6,0.001]
[1751205013793,10.55,2449.1,2448.8,0.204]
[1751205015067,14.63316426,2449.1,2448.8,0.204]
[1751205015469,26.3685227,2449.1,2448.8,0.204]
[1751205016107,22.28535844,2449.1,2448.8,0.204]
[1751205016264,19.8694431,2449.1,2448.8,0.204]
[1751205018298,10.55,2449.1,2448.8,4.28759992]
[1751205018481,0.55,2449.1,2448.8,4.28759992]
[1751205018681,0.55,2449.1,2448.8,0.204]
[1751205019804,4.63320775,2449.1,2448.8,0.204]
[1751205019973,4.08341608,2449.0,2448.8,0.204]
[1751205020468,14.73586932,2449.1,2448.8,0.204]
[1751205020918,10.6526431,2449.1,2448.8,0.204]
[1751205021518,14.73578195,2449.1,2448.8,0.204]
[1751205022324,9.8694431,2449.1,2448.8,0.204]
[1751205023222,13.9526176,2449.1,2448.8,0.204]
[1751205023446,9.8694431,2449.1,2448.8,0.204]
[1751205023721,0.55,2449.1,2448.8,4.28761413]
[1751205023937,0.55,2449.1,2448.8,0.204]
[1751205024236,4.63322836,2449.1,2448.8,0.204]
[1751205025035,0.55,2449.1,2448.8,0.204]
[1751205025532,4.63316354,2449.1,2448.8,0.204]
[1751205026930,0.55,2449.1,2448.8,0.204]
[1751205029370,4.63314435,2449.1,2448.8,0.204]
[1751205033030,4.08336405,2449.0,2448.8,0.204]
[1751205033869,4.08346604,2448.9,2448.8,0.204]
[1751205034070,4.63346604,2448.9,2448.6,0.001]
[1751205034243,4.63346604,2448.9,2448.6,0.205]
[1751205034440,0.55,2448.9,2448.6,4.28887746]
[1751205035163,4.6334841,2448.9,2448.6,0.205]
[1751205035346,5.162388,2448.8,2448.6,0.205]
[1751205035679,4.08365444,2448.8,2448.6,0.205]
[1751205036386,0.55,2448.9,2448.6,0.205]
[1751205036668,0.55,2448.9,2448.7,0.7812]
[1751205039872,10.0,2449.0,2448.8,4.08347603]
[1751205040074,10.0,2449.1,2448.8,4.28747603]
[1751205040281,10.0,2449.1,2448.8,0.204]
[1751205041684,4.08339421,2449.0,2448.8,0.204]
[1751205042569,10.0,2449.1,2448.8,0.204]
[1751205043570,14.23346619,2449.0,2448.8,0.204]
[1751205043767,0.55,2448.9,2448.8,0.204]
[1751205044069,0.55,2448.9,2448.6,10.87689716]
[1751205044648,0.55,2448.9,2448.7,4.08377148]
[1751205045372,0.55,2448.9,2448.6,10.87686046]
[1751205047472,0.8269,2448.8,2448.6,0.205]
[1751205047769,10.55,2448.9,2448.6,0.205]
[1751205048276,12.03795803,2448.9,2448.6,0.205]
[1751205048444,12.03795803,2448.9,2448.6,4.28894303]
[1751205048770,10.0,2448.9,2448.6,4.28887797]
[1751205048972,10.0,2448.9,2448.6,5.11707797]
[1751205049557,0.8269,2449.3,2448.6,0.8292]
[1751205049762,4.49976578,2449.4,2449.0,0.204]
[1751205049963,10.0,2449.3,2449.0,0.204]
[1751205050278,10.0,2449.3,2449.0,4.28729228]
[1751205050781,10.4170844,2449.4,2449.1,4.0831134]
[1751205050975,4.39266091,2449.7,2449.1,1.57877691]
[1751205050976,0.8269,2449.7,2449.1,1.57877691]
[1751205051274,6.589,2449.8,2449.0,0.8282]
[1751205051275,0.21307314,2449.8,2449.0,0.8282]
[1751205051465,0.21307314,2449.8,2449.6,4.08227312]
[1751205051979,0.21307314,2449.8,2449.5,5.11460283]
[1751205054400,19.3194431,2449.6,2449.5,0.204]
[1751205054613,20.0812431,2449.6,2449.3,6.794]
[1751205054913,26.62168474,2449.6,2449.3,0.204]
[1751205055077,9.3194431,2449.4,2449.3,0.204]
[1751205055899,10.55,2449.3,2449.0,6.593]
[1751205056100,9.3194431,2449.2,2449.0,6.797]
[1751205056396,10.0,2449.1,2449.0,0.204]
[1751205057088,10.0,2449.1,2448.9,6.77362403]
[1751205057465,10.0,2449.1,2448.9,0.204]
[1751205057700,11.52067417,2449.1,2448.9,0.204]
[1751205058068,10.0,2449.1,2448.9,0.204]
[1751205058301,10.0,2449.1,2448.9,4.28745419]
[1751205058698,0.204,2449.3,2448.9,0.204]
[1751205058868,0.7618,2449.6,2449.0,0.204]
[1751205059068,0.204,2449.7,2449.3,4.28671868]
[1751205059370,2.66444957,2449.7,2449.4,4.08261737]
[1751205059770,0.204,2449.7,2449.3,0.204]
[1751205060071,0.204,2449.7,2449.4,4.08252756]
[1751205060289,9.5234431,2449.7,2449.3,1.001]
[1751205060494,9.5234431,2449.7,2449.3,4.28677396]
[1751205060772,10.0,2449.6,2449.4,4.08261525]
[1751205061004,0.204,2449.7,2449.5,4.08239264]
[1751205061190,0.002,2449.9,2449.6,4.08229915]
[1751205061470,2.49721927,2449.9,2449.5,4.28640871]
[1751205061784,2.49721927,2449.9,2449.5,4.28638891]
[1751205062314,10.0,2449.7,2449.5,0.204]
[1751205063911,10.0,2449.7,2449.5,4.28644716]
[1751205064123,10.0,2449.7,2449.5,0.204]
[1751205064801,0.55,2449.6,2449.2,6.597]
[1751205065001,10.1034431,2449.5,2449.2,6.803]
[1751205066301,10.1034431,2449.5,2449.2,0.204]
[1751205066523,10.1034431,2449.5,2449.2,6.803]
[1751205066724,10.1034431,2449.5,2449.2,10.88587124]
[1751205066914,12.59866237,2449.5,2449.2,6.803]
[1751205067108,9.8694431,2449.3,2448.9,4.08346189]
[1751205067323,9.3194431,2449.3,2449.0,6.803]
[1751205067713,9.3194431,2449.3,2449.0,6.802]
[1751205068233,0.55,2449.2,2449.0,0.204]
[1751205068436,9.3194431,2449.1,2448.9,6.598]
[1751205069524,9.3194431,2449.1,2448.8,0.204]
[1751205069740,9.3194431,2449.1,2448.8,6.802]
[1751205069925,10.0,2449.0,2448.8,6.802]
[1751205070528,10.0,2449.0,2448.8,0.204]
[1751205071152,10.0,2449.0,2448.8,6.801]
[1751205073056,14.08332885,2449.0,2448.8,0.204]
[1751205073360,9.3194431,2448.9,2448.6,0.205]
[1751205073523,10.0,2448.8,2448.6,6.803]
[1751205074120,0.55,2448.9,2448.6,6.803]
[1751205074351,10.0,2448.8,2448.6,6.803]
[1751205074855,4.63347968,2448.9,2448.6,6.803]
[1751205074856,0.55,2448.9,2448.6,6.803]
[1751205075052,10.0,2448.8,2448.6,6.803]
[1751205075538,14.63356058,2448.9,2448.6,6.803]
[1751205075741,16.11706234,2448.9,2448.6,6.803]
[1751205076160,25.43650544,2448.9,2448.6,6.803]
[1751205077285,21.35294486,2448.9,2448.6,0.205]
[1751205078359,25.43645367,2448.9,2448.6,0.205]
[1751205079028,21.35294486,2448.9,2448.6,0.205]
[1751205079430,25.43644265,2448.9,2448.6,0.205]
[1751205080761,4.08365933,2448.8,2448.6,0.205]
[1751205081063,12.49521927,2448.8,2448.6,0.205]
[1751205081228,10.0,2448.8,2448.6,0.205]
[1751205081632,14.08363485,2448.8,2448.6,0.205]
[1751205081967,10.0,2448.8,2448.6,0.205]
[1751205082361,9.8694431,2448.9,2448.6,0.205]
[1751205082560,10.0,2448.8,2448.6,0.205]
[1751205083135,10.0,2448.8,2448.6,0.001]
[1751205083136,23.95324266,2448.7,2448.6,0.001]
[1751205083338,24.73924266,2448.7,2448.6,0.001]
[1751205085776,20.6554431,2448.7,2448.6,0.001]
[1751205086069,19.8694431,2448.7,2448.6,0.001]
[1751205086269,21.04453234,2448.7,2448.6,0.001]
[1751205089171,25.1283319,2448.7,2448.6,0.001]
[1751205091890,11.72508924,2448.7,2448.6,0.001]
[1751205092580,10.0,2448.7,2448.6,0.001]
[1751205093182,10.8079,2449.3,2448.9,4.08336927]
[1751205093369,0.4171089,2449.2,2448.8,4.89164755]
[1751205093551,0.55,2449.1,2448.8,4.89164755]
[1751205095185,0.4171089,2449.2,2448.9,4.08345267]
[1751205095349,0.4171089,2449.2,2448.8,5.09564972]
[1751205095550,0.4171089,2449.2,2448.9,4.08345533]
[1751205096290,0.4171089,2449.2,2448.8,5.09565301]
[1751205096884,0.4171089,2449.2,2448.9,4.08340289]
[1751205098059,0.4171089,2449.2,2449.0,4.08329452]
[1751205098992,0.4171089,2449.2,2448.8,1.0121]
[1751205099167,10.8295,2449.1,2448.8,0.204]
[1751205101282,10.8295,2449.1,2448.9,4.0834384]
[1751205101594,10.0,2449.1,2448.9,4.08346604]
[1751205102887,10.0,2449.1,2448.8,0.204]
[1751205103091,10.0,2449.1,2448.8,4.28751813]
[1751205103793,10.0,2449.1,2448.8,0.204]
[1751205104002,10.0,2449.1,2448.8,4.28754941]
[1751205105069,0.4171089,2449.2,2448.8,4.28754941]
[1751205105268,4.08237151,2449.6,2449.0,4.0832993]
[1751205105269,10.8063,2449.6,2449.0,4.0832993]
[1751205105475,0.204,2449.5,2449.2,4.08294136]
[1751205106099,0.204,2449.5,2449.1,4.08307434]
[1751205106776,10.0,2449.4,2449.0,4.28724626]
[1751205108909,10.0,2449.4,2449.1,4.08310896]
[1751205116408,10.0,2449.4,2449.2,4.08296168]
[1751205117513,0.204,2449.5,2449.3,4.08279916]
[1751205117815,0.204,2449.5,2449.2,4.08289049]
[1751205118213,0.204,2449.5,2449.3,4.08278744]
[1751205118909,0.55,2449.6,2449.3,0.204]
[1751205119111,3.72161484,2449.6,2449.3,4.28674893]
[1751205119718,3.72161484,2449.6,2449.3,0.204]
[1751205120018,3.72161484,2449.6,2449.3,4.28679499]
[1751205120616,3.72161484,2449.6,2449.3,0.204]
[1751205120809,3.72161484,2449.6,2449.3,4.28676235]
[1751205121632,7.80392425,2449.6,2449.3,0.204]
[1751205121809,0.80710619,2449.5,2449.3,0.204]
[1751205122737,10.0,2449.4,2449.3,0.204]
[1751205122910,14.83803248,2449.4,2448.9,4.90920017]
[1751205123117,9.3194431,2449.3,2449.0,0.204]
[1751205124345,10.7554,2449.4,2449.0,4.2872683]
[1751205124507,26.20567157,2449.4,2449.0,4.2872683]
[1751205125014,4.08280661,2449.3,2449.0,0.204]
[1751205125607,0.55,2449.2,2448.9,4.08337985]
[1751205125796,0.55,2449.2,2448.9,4.28737985]
[1751205126635,0.55,2449.2,2449.0,4.08327713]
[1751205127438,0.55,2449.2,2448.9,4.28738872]
[1751205130139,0.55,2449.2,2448.9,0.204]
[1751205130436,1.67346761,2449.2,2448.9,0.204]
[1751205130602,9.3194431,2449.0,2448.6,0.001]
[1751205130799,9.3194431,2449.0,2448.7,0.204]
[1751205130999,13.40274351,2449.0,2448.7,0.204]
[1751205131643,0.55,2448.9,2448.6,4.08489039]
[1751205131843,0.55,2448.9,2448.6,4.28889039]
[1751205132600,0.55,2448.9,2448.6,0.205]
[1751205132802,4.63347925,2448.9,2448.6,0.205]
[1751205133335,0.7672,2448.7,2448.6,0.001]
[1751205133735,10.7672,2448.7,2448.6,0.001]
[1751205135562,10.0,2448.7,2448.6,0.001]
[1751205135907,14.08379956,2448.7,2448.6,0.001]
[1751205136850,10.0,2448.7,2448.6,0.001]
[1751205137358,14.08379956,2448.7,2448.6,0.001]
[1751205137661,14.63379956,2448.7,2448.6,0.001]
[1751205137950,16.68194679,2448.7,2448.6,0.001]
[1751205138456,17.64114679,2448.7,2448.6,0.001]
[1751205142066,4.08480045,2448.1,2448.0,0.001]
[1751205142383,14.63596878,2447.4,2447.3,0.2207144]
[1751205142529,31.70587949,2447.4,2447.3,0.2207144]
[1751205142849,10.55,2447.4,2447.3,0.2207144]
[1751205143635,10.0,2447.4,2447.3,0.2207144]
[1751205146049,0.7552,2447.9,2447.3,0.2207144]
[1751205146050,9.3194431,2448.2,2447.7,4.08545728]
[1751205146656,10.0,2448.1,2447.7,4.08545728]
[1751205146971,0.55,2448.0,2447.7,4.08545728]
[1751205147177,0.55,2448.0,2447.8,4.08528114]
[1751205147691,0.55,2448.0,2447.7,4.0854177]
[1751205150568,0.55,2448.0,2447.8,4.08529373]
[1751205150880,9.8694431,2448.0,2447.7,4.08539902]
[1751205151256,9.8694431,2448.0,2447.4,0.8251]
[1751205151257,9.8694431,2447.8,2447.4,4.0858853]
[1751205151596,9.8694431,2447.8,2447.5,4.08578978]
[1751205152080,9.8694431,2447.8,2447.5,0.204]
[1751205153874,9.8694431,2447.8,2447.5,4.28978022]
[1751205154196,9.8694431,2447.8,2447.6,4.08560296]
[1751205155191,0.55,2447.8,2447.6,4.08555402]
[1751205155771,0.55,2447.8,2447.7,4.08546799]
[1751205156392,0.55,2447.8,2447.6,4.08555901]
[1751205156961,0.55,2447.8,2447.7,4.08546799]
[1751205157411,0.55,2447.8,2447.6,4.08556707]
[1751205157865,0.55,2447.8,2447.6,10.72456707]
[1751205159900,0.55,2447.8,2447.6,6.639]
[1751205160099,0.55,2447.8,2447.6,6.637]
[1751205160414,9.8694431,2447.8,2447.5,6.841]
[1751205160996,9.8694431,2447.8,2447.5,6.843]
[1751205161202,9.8694431,2447.8,2447.5,10.9287829]
[1751205162510,9.8694431,2447.8,2447.6,4.08560729]
[1751205164304,9.8694431,2447.8,2447.5,4.28972044]
[1751205164500,9.8694431,2447.8,2447.6,4.08561265]
[1751205165423,0.55,2447.8,2447.6,4.08561265]
[1751205166195,0.55,2447.8,2447.5,4.28971981]
[1751205166997,0.55,2447.8,2447.6,4.0855846]
[1751205169220,0.204,2447.9,2447.7,4.08533399]
[1751205170085,0.204,2447.9,2447.7,10.71833399]
[1751205170819,0.204,2447.9,2447.8,4.08530108]
[1751205171027,0.754,2448.2,2447.9,4.08512229]
[1751205171229,3.47152185,2448.2,2447.9,4.08512229]
[1751205171794,0.55,2448.2,2448.0,10.71687773]
[1751205171997,0.55,2448.2,2448.1,4.08480045]
[1751205172629,0.204,2448.3,2448.2,4.0846336]
[1751205172791,1.913,2448.5,2448.2,4.0846336]
[1751205172996,0.55,2448.4,2448.1,4.28871684]
[1751205178539,10.0,2448.3,2448.1,4.28871684]
[1751205180333,10.0,2448.3,2448.2,4.0846336]
[1751205180538,10.204,2448.5,2448.1,0.204]
[1751205180835,0.21316133,2448.6,2448.2,5.09516856]
[1751205181042,9.53260443,2448.6,2448.3,10.71037865]
[1751205181410,10.0,2448.5,2448.3,10.71037865]
[1751205182532,0.21316133,2448.6,2448.4,4.08429995]
[1751205182734,0.21316133,2448.6,2448.3,10.71038572]
[1751205182913,0.21316133,2448.6,2448.3,6.626]
[1751205183108,20.6366431,2448.5,2447.8,4.08517927]
[1751205183308,20.6366431,2448.5,2447.7,4.0853844]
[1751205183309,9.3194431,2448.0,2447.7,4.0853844]
[1751205183533,9.3194431,2448.0,2447.7,10.7093844]
[1751205183933,9.3194431,2448.0,2447.7,4.0853844]
[1751205184115,9.3194431,2448.0,2447.8,6.637]
[1751205184315,9.3194431,2448.0,2447.8,10.72228816]
[1751205185129,9.3194431,2448.0,2447.8,4.08528816]
[1751205185334,9.3194431,2448.0,2447.9,6.637]
[1751205187633,10.0702431,2448.0,2447.8,6.634]
[1751205188245,9.3194431,2448.0,2447.8,10.71928702]
[1751205188851,0.7508,2448.2,2447.9,4.08513015]
[1751205188852,0.55,2448.1,2447.9,4.08513015]
[1751205190048,10.7508,2448.4,2447.8,10.71923974]
[1751205190246,0.55,2448.3,2448.0,4.08488072]
[1751205192647,0.55,2448.3,2448.0,4.0849036]
[1751205192854,0.55,2448.3,2448.0,4.08496732]
[1751205193149,0.55,2448.3,2448.0,4.28896732]
[1751205193753,10.0,2448.2,2448.0,0.204]
[1751205194317,10.0,2448.2,2448.0,4.28894764]
[1751205194650,10.0,2448.2,2448.0,0.204]
[1751205195452,10.0,2448.2,2447.9,0.7743]
[1751205195453,9.8694431,2448.1,2447.9,6.629]
[1751205195630,19.8694431,2448.1,2447.9,6.629]
[1751205195950,19.8694431,2448.1,2447.8,0.204]
[1751205196120,19.8694431,2448.1,2447.8,6.833]
[1751205196642,19.8694431,2448.1,2447.8,10.91828265]
[1751205197462,19.8694431,2448.1,2447.8,6.833]
[1751205197655,19.8694431,2448.1,2447.8,10.9182922]
[1751205201672,10.55,2448.1,2447.8,10.9182922]
[1751205202564,10.55,2448.1,2447.9,4.08512297]
[1751205204070,10.55,2448.1,2447.8,10.91821072]
[1751205207489,10.55,2448.1,2447.9,4.08512807]
[1751205207853,10.55,2448.1,2447.8,10.91821825]
[1751205209482,10.55,2448.1,2447.9,4.0850391]
[1751205209651,10.0,2448.1,2448.0,4.08496732]
[1751205210476,10.0,2448.1,2447.9,4.0850625]
[1751205212179,10.0,2448.1,2448.0,4.08496732]
[1751205214082,10.0,2448.1,2448.0,10.70196732]
[1751205219486,10.0,2448.1,2448.0,6.617]
[1751205219888,10.0,2448.1,2448.0,10.70196732]
[1751205221393,10.0,2448.1,2448.0,6.617]
[1751205226399,10.0,2448.1,2447.9,0.204]
[1751205226586,10.0,2448.1,2448.0,6.61]
[1751205230511,10.0,2448.1,2447.9,0.204]
[1751205230697,10.0,2448.1,2448.0,6.606]
[1751205234225,10.0,2448.1,2448.0,10.69096732]
[1751205235822,0.754,2448.4,2448.0,10.69096732]
[1751205235823,0.204,2448.4,2448.0,8.10400696]
[1751205235986,0.55,2448.5,2448.2,4.08448656]
[1751205236188,0.55,2448.5,2448.3,10.68739422]
[1751205237920,0.21316133,2448.6,2448.3,10.89139476]
[1751205240498,4.0842644,2448.5,2448.3,6.807]
[1751205240802,10.0,2448.4,2448.3,6.807]
[1751205242701,0.21316133,2448.6,2448.3,6.807]
[1751205243321,4.2971507,2448.6,2448.3,6.807]
[1751205245548,10.59138315,2448.8,2448.4,4.85602531]
[1751205245549,0.002,2448.8,2448.4,4.85602531]
[1751205246220,0.002,2448.8,2448.5,4.08398256]
[1751205246427,0.002,2448.8,2448.6,4.08393885]
[1751205247622,0.002,2448.8,2448.6,10.68693885]
[1751205248845,0.002,2448.8,2448.5,4.08413314]
[1751205248846,10.0,2448.6,2448.5,4.08413314]
[1751205249724,10.0,2448.6,2448.4,10.68821222]
[1751205251552,10.0,2448.6,2448.5,4.08413314]
[1751205252130,0.002,2448.8,2448.6,4.08382249]
[1751205252346,0.002,2448.8,2448.7,10.68479956]
[1751205253654,0.002,2448.8,2448.7,6.601]
[1751205256362,0.002,2448.8,2448.5,4.28812002]
[1751205256666,0.002,2448.8,2448.6,6.601]
[1751205257761,0.002,2448.8,2448.6,10.6849419]
[1751205259164,0.002,2448.8,2448.7,4.08379956]
[1751205260465,0.002,2448.8,2448.6,12.26256981]
[1751205260665,0.002,2448.8,2448.6,10.68483816]
[1751205261527,0.002,2448.8,2448.6,6.601]
[1751205261954,0.002,2448.8,2448.5,4.28806303]
[1751205262168,0.002,2448.8,2448.6,6.603]
[1751205267972,0.002,2448.8,2448.6,6.6]
[1751205270571,0.002,2448.8,2448.6,10.6839543]
[1751205271073,0.002,2448.8,2448.6,6.6]
[1751205272482,0.002,2448.8,2448.6,10.68394015]
[1751205273693,0.002,2448.8,2448.7,4.08379956]
[1751205277785,0.002,2448.8,2448.7,10.68279956]
[1751205278282,0.002,2448.8,2448.7,4.08379956]
[1751205278486,0.002,2448.8,2448.7,10.68279956]
[1751205279154,0.002,2448.8,2448.7,6.599]
[1751205279771,0.002,2448.8,2448.7,10.68279956]
[1751205281387,0.002,2448.8,2448.7,10.88679956]
[1751205282188,0.002,2448.8,2448.7,0.204]
[1751205282357,0.002,2448.8,2448.7,6.803]
[1751205283292,0.002,2448.8,2448.7,0.204]
[1751205283487,9.8714431,2448.8,2448.7,0.204]
[1751205283688,21.93997741,2448.8,2448.7,6.599]
[1751205283888,22.14397741,2448.8,2448.7,6.599]
[1751205287195,22.14397741,2448.8,2448.5,4.0841308]
[1751205287391,22.14397741,2448.8,2448.6,6.599]
[1751205290297,20.0754431,2448.8,2448.6,6.599]
[1751205290695,20.0754431,2448.8,2448.6,10.68296029]
[1751205291502,20.0754431,2448.8,2448.7,4.08379956]
[1751205291703,10.756,2448.8,2448.7,4.08379956]
[1751205298193,10.756,2448.8,2448.3,5.04140345]
[1751205298491,20.0754431,2448.8,2448.5,4.08411242]
[1751205298691,10.756,2448.8,2448.5,4.08411242]
[1751205298902,10.756,2448.8,2448.7,4.08379956]
[1751205299680,10.002,2448.8,2448.7,4.08379956]
[1751205299897,10.002,2448.8,2448.7,10.68279956]
[1751205300712,10.002,2448.8,2448.6,10.88687663]
[1751205300912,10.002,2448.8,2448.6,6.599]
[1751205301713,10.002,2448.8,2448.6,10.68296077]
[1751205302585,10.552,2448.8,2448.7,4.08379956]
[1751205303085,10.002,2448.8,2448.7,4.08379956]
[1751205306627,10.002,2448.8,2448.6,11.44646986]
[1751205307207,10.002,2448.8,2448.7,4.08379956]
[1751205309323,10.002,2448.8,2448.6,11.44646782]
[1751205311629,10.002,2448.8,2448.7,4.08379956]
[1751205312010,10.002,2448.8,2448.6,11.44646948]
[1751205317135,10.002,2448.8,2448.7,4.08379956]
[1751205317433,10.002,2448.8,2448.7,4.28779956]
[1751205318297,10.002,2448.8,2448.7,5.8612359]
[1751205318494,0.002,2448.8,2448.7,5.8612359]
[1751205321735,0.002,2448.8,2448.7,1.77743634]
[1751205322027,19.3214431,2448.8,2448.7,6.801]
[1751205322532,19.3214431,2448.8,2448.7,0.204]
[1751205322734,19.3214431,2448.8,2448.7,6.801]
[1751205327833,19.3214431,2448.8,2448.7,0.204]
[1751205328017,23.40507589,2448.8,2448.7,0.204]
[1751205329838,19.3214431,2448.8,2448.7,0.204]
[1751205330203,23.40507589,2448.8,2448.7,0.204]
[1751205330803,19.3214431,2448.8,2448.7,0.204]
[1751205335210,1.3375,2448.7,2447.9,0.7577]
[1751205335409,1.3375,2448.7,2447.8,4.08513866]
[1751205335410,1.3375,2448.7,2448.3,4.28843086]
[1751205335642,1.3375,2448.7,2448.4,6.597]
[1751205336352,0.55,2448.7,2448.4,6.597]
[1751205336862,4.63381654,2448.7,2448.4,6.597]
[1751205337144,0.55,2448.7,2448.4,6.597]
[1751205337932,0.55,2448.7,2448.4,4.08423527]
[1751205338225,0.55,2448.7,2448.4,10.68123527]
[1751205344855,0.55,2448.7,2448.5,4.08413086]
[1751205346552,0.55,2448.7,2448.4,10.68120441]
[1751205348155,0.55,2448.7,2448.5,4.08411895]
[1751205349254,0.55,2448.7,2448.6,4.08396634]
[1751205349654,10.002,2448.8,2448.7,4.08379956]
[1751205349951,10.002,2448.8,2448.5,1.0016]
[1751205350151,10.002,2448.8,2448.5,5.84542739]
[1751205350454,10.002,2448.8,2448.6,4.08395491]
[1751205352456,10.002,2448.8,2448.7,4.08379956]
[1751205371566,10.002,2448.8,2448.7,10.67779956]
[1751205371771,10.002,2448.8,2448.7,10.88179956]
[1751205371972,10.002,2448.8,2448.7,12.45813316]
[1751205380282,10.002,2448.8,2448.7,10.88179956]
[1751205385788,10.002,2448.8,2448.7,4.28779956]
[1751205386097,10.002,2448.8,2448.7,10.88079956]
[1751205386253,10.002,2448.8,2448.7,4.28779956]
[1751205386593,10.002,2448.8,2448.7,10.88079956]
[1751205388208,0.002,2448.8,2448.7,10.88079956]
[1751205388502,0.002,2448.8,2448.7,12.4570338]
[1751205390808,0.002,2448.8,2448.7,10.88079956]
[1751205402247,0.002,2448.8,2448.7,4.28779956]
[1751205402389,0.002,2448.8,2448.7,10.87879956]
[1751205410552,0.55,2448.7,2448.4,4.08415339]
[1751205410711,6.53769838,2448.6,2448.5,6.59]
[1751205411522,6.53769838,2448.6,2448.5,10.67413314]
[1751205413911,0.55,2448.7,2448.5,10.67413314]
[1751205415248,6.53769838,2448.6,2448.4,4.08421866]
[1751205415461,6.53769838,2448.6,2448.5,6.59]
[1751205417553,6.53769838,2448.6,2448.4,4.08421866]
[1751205417711,6.53769838,2448.6,2448.5,6.59]
[1751205418655,6.53769838,2448.6,2448.5,10.67413314]
[1751205419311,0.55,2448.7,2448.6,4.08396634]
[1751205420160,10.002,2448.8,2448.7,4.08379956]
[1751205420318,10.002,2448.8,2448.7,10.67379956]
[1751205420731,10.002,2448.8,2448.7,6.59]
[1751205420930,16.53969838,2448.8,2448.7,6.59]
[1751205422325,18.75510928,2448.8,2448.7,6.59]
[1751205422931,19.30510928,2448.8,2448.7,6.59]
[1751205423125,20.09430928,2448.8,2448.7,6.59]
[1751205423661,24.17795413,2448.8,2448.6,6.589]
[1751205423828,0.55,2448.7,2448.6,6.589]
[1751205426458,0.55,2448.7,2448.4,4.08421179]
[1751205426639,0.55,2448.7,2448.5,6.589]
[1751205428955,6.53769838,2448.6,2448.3,4.2883914]
[1751205429166,7.08769838,2448.6,2448.5,6.589]
[1751205430282,7.08769838,2448.6,2448.4,4.08427262]
[1751205430594,7.08769838,2448.6,2448.3,0.204]
[1751205430595,10.9952,2448.8,2448.6,4.08396634]
[1751205430752,10.002,2448.8,2448.7,4.08379956]
[1751205430948,0.002,2448.8,2448.7,4.08379956]
[1751205431161,0.002,2448.8,2448.7,5.11579956]
[1751205431376,0.002,2448.8,2448.7,6.69467615]
[1751205435722,0.002,2448.8,2448.7,13.28267615]
[1751205449102,0.002,2448.8,2448.7,6.69467615]
[1751205449288,0.002,2448.8,2448.7,14.96367615]
[1751205449712,0.002,2448.8,2448.7,14.13567615]
[1751205452613,0.002,2448.8,2448.7,12.45267615]
[1751205454823,0.002,2448.8,2448.7,5.86667615]
[1751205455024,0.002,2448.8,2448.7,12.45267615]
[1751205461299,0.002,2448.8,2448.7,10.87279956]
[1751205461597,0.002,2448.8,2448.7,4.28779956]
[1751205461793,0.002,2448.8,2448.7,10.87279956]
[1751205476625,0.002,2448.8,2448.7,11.66249956]
[1751205479370,0.002,2448.8,2448.7,10.87279956]
[1751205480266,0.002,2448.8,2448.7,12.61574348]
[1751205480473,11.93882096,2448.8,2448.7,0.204]